bitfinex/quotes_BTCUSD_20250314
["timestamp","ask_amount","ask_price","bid_price","bid_amount"]
[1741941923939,6.918e-05,82800.0,82799.0,0.41015417]
[1741941924169,6.918e-05,82800.0,82799.0,0.41615417]
[1741941926826,6.918e-05,82800.0,82799.0,0.27911417]
[1741941927037,6.918e-05,82800.0,82799.0,0.41611417]
[1741941932601,6.918e-05,82800.0,82799.0,0.27911417]
[1741941932819,6.918e-05,82800.0,82799.0,0.41611417]
[1741941933434,6.918e-05,82800.0,82799.0,0.43065502]
[1741941933605,6.918e-05,82800.0,82799.0,0.46281417]
[1741941934256,6.918e-05,82800.0,82799.0,0.45681417]
[1741941934457,6.918e-05,82800.0,82799.0,0.45081417]
[1741941934664,6.918e-05,82800.0,82799.0,0.46281417]
[1741941935076,6.918e-05,82800.0,82799.0,0.45681417]
[1741941936940,6.918e-05,82800.0,82799.0,0.45077417]
[1741941937143,6.918e-05,82800.0,82799.0,0.46277417]
[1741941937350,6.918e-05,82800.0,82799.0,0.45677417]
[1741941937524,6.918e-05,82800.0,82799.0,0.46277417]
[1741941937755,6.918e-05,82800.0,82799.0,0.45677417]
[1741941938150,6.918e-05,82800.0,82799.0,0.46277417]
[1741941941365,0.20006918,82800.0,82799.0,0.46277417]
[1741941941521,0.20006918,82800.0,82799.0,0.41607417]
[1741941943381,0.20006918,82800.0,82799.0,0.27911417]
[1741941943611,0.20006918,82800.0,82799.0,0.41607417]
[1741941954867,0.20006918,82800.0,82799.0,0.27911417]
[1741941960855,0.20006918,82800.0,82799.0,0.02548917]
[1741941961081,0.20006918,82800.0,82799.0,0.27911417]
[1741941961291,0.20006918,82800.0,82799.0,0.265625]
[1741941961488,0.20006918,82800.0,82799.0,0.27677555]
[1741941962073,0.20006918,82800.0,82799.0,0.28366587]
[1741941962279,0.44161418,82800.0,82799.0,0.03004087]
[1741941962522,0.20006918,82800.0,82799.0,0.26558887]
[1741941962730,0.20006918,82800.0,82799.0,0.27766587]
[1741941963600,0.20006918,82800.0,82799.0,0.41462587]
[1741941964073,0.20006918,82800.0,82799.0,0.42062587]
[1741941964451,0.20006918,82800.0,82799.0,0.41462587]
[1741941964810,0.20006918,82800.0,82799.0,0.42062587]
[1741941965146,0.19706918,82800.0,82799.0,0.42062587]
[1741941965739,0.45069118,82800.0,82799.0,0.03004087]
[1741941965962,0.19706918,82800.0,82799.0,0.265625]
[1741941966181,0.19706918,82800.0,82799.0,0.28365666]
[1741941966809,0.19706918,82800.0,82799.0,0.27765666]
[1741941967237,0.19706918,82800.0,82799.0,0.28165666]
[1741941967445,0.43861418,82800.0,82799.0,0.02403166]
[1741941967651,0.45069118,82800.0,82799.0,0.02303166]
[1741941967896,0.45069118,82800.0,82799.0,0.02803166]
[1741941968071,0.45086018,82800.0,82799.0,0.02803166]
[1741941968496,0.46979878,82800.0,82799.0,0.02303166]
[1741941968698,0.46979878,82800.0,82799.0,0.005]
[1741941968901,0.46979878,82800.0,82799.0,0.01]
[1741941969784,0.21617678,82800.0,82799.0,0.01]
[1741941969988,0.21617678,82800.0,82799.0,0.27666345]
[1741941970189,0.21617678,82800.0,82799.0,0.27166345]
[1741941970427,0.21617678,82800.0,82799.0,0.28066345]
[1741941970991,0.19723818,82800.0,82799.0,0.35356345]
[1741941971192,0.19723818,82800.0,82799.0,0.35756345]
[1741941971594,0.19723818,82800.0,82799.0,0.35356345]
[1741941971798,0.19723818,82800.0,82799.0,0.34956345]
[1741941972034,0.19723818,82800.0,82799.0,0.36056345]
[1741941972632,0.19723818,82800.0,82799.0,0.28266345]
[1741941972829,0.19723818,82800.0,82799.0,0.27058645]
[1741941973032,0.21990752,82800.0,82799.0,0.02903845]
[1741941973327,0.21990752,82800.0,82799.0,0.02403845]
[1741941973773,0.46145252,82800.0,82799.0,0.02403845]
[1741941973977,0.47352952,82800.0,82799.0,0.01803845]
[1741941974186,0.47352952,82800.0,82799.0,0.009]
[1741941974381,0.47352952,82800.0,82799.0,0.0272807]
[1741941975005,0.46145252,82800.0,82799.0,0.0272807]
[1741941975408,0.21990752,82800.0,82799.0,0.0272807]
[1741941975617,0.47352952,82800.0,82799.0,0.0272807]
[1741941975842,0.47352952,82800.0,82799.0,0.009]
[1741941976244,0.47352952,82800.0,82799.0,0.0272807]
[1741941976481,0.47352952,82800.0,82799.0,0.009]
[1741941976688,0.21990752,82800.0,82799.0,0.0272807]
[1741941976949,0.21990752,82800.0,82799.0,0.009]
[1741941977158,0.18163328,82800.0,82799.0,0.009]
[1741941977365,0.27800276,82800.0,82799.0,0.02754649]
[1741941977555,0.27800276,82800.0,82799.0,0.009]
[1741941978180,0.27800276,82800.0,82799.0,0.004]
[1741941978511,0.27800276,82800.0,82799.0,0.008]
[1741941979851,0.253628,82798.0,82797.0,0.000338]
[1741941980723,0.26495907,82798.0,82797.0,0.000338]
[1741941981070,0.26495907,82798.0,82797.0,0.003338]
[1741941981267,0.26495907,82798.0,82797.0,0.005338]
[1741941981808,0.26495907,82798.0,82797.0,0.02391736]
[1741941982009,0.01133107,82798.0,82797.0,0.26547136]
[1741941982209,0.01133107,82798.0,82797.0,0.27754836]
[1741941982612,0.01910741,82800.0,82799.0,0.241548]
[1741941982822,0.01910741,82800.0,82799.0,0.2721998]
[1741941983014,0.01910741,82800.0,82799.0,0.0185748]
[1741941983221,0.26065541,82800.0,82797.0,0.246892]
[1741941983555,0.26065541,82800.0,82798.0,0.01857708]
[1741941983888,0.26065541,82800.0,82799.0,0.004]
[1741941984079,0.26065541,82800.0,82799.0,0.002]
[1741941984437,0.26065541,82800.0,82799.0,0.0185748]
[1741941984610,0.26065541,82800.0,82797.0,0.245892]
[1741941984812,0.26065541,82800.0,82798.0,0.01857925]
[1741941985033,0.01910741,82800.0,82798.0,0.27220625]
[1741941985231,0.01910741,82800.0,82799.0,0.241548]
[1741941985411,0.01910741,82800.0,82799.0,0.26012497]
[1741941985836,0.01910741,82800.0,82799.0,0.01857697]
[1741941986088,0.01910741,82800.0,82799.0,0.002]
[1741941986305,0.26065241,82800.0,82799.0,0.02057697]
[1741941986508,0.01910741,82800.0,82799.0,0.002]
[1741941986654,0.26065241,82800.0,82799.0,0.02057697]
[1741941987034,0.26065241,82800.0,82799.0,0.02257697]
[1741941987473,0.01910741,82800.0,82799.0,0.02257697]
[1741941988010,0.01910741,82800.0,82799.0,0.27620197]
[1741941988278,0.000169,82800.0,82799.0,0.35240197]
[1741941989239,0.241495,82818.0,82815.0,0.241502]
[1741941989447,0.24190644,82817.0,82816.0,0.01853327]
[1741941989644,0.00041044,82817.0,82816.0,0.01853327]
[1741941989854,0.00041044,82817.0,82816.0,0.27210627]
[1741941991455,0.00041044,82817.0,82816.0,0.41302627]
[1741941992213,0.00041044,82817.0,82816.0,0.53922627]
[1741941992676,0.00041044,82817.0,82816.0,0.85376712]
[1741941993058,0.00041044,82817.0,82816.0,0.85476712]
[1741941993258,4.4e-07,82817.0,82816.0,1.97246712]
[1741941993461,4.4e-07,82817.0,82816.0,2.15730812]
[1741941993690,4.4e-07,82817.0,82816.0,2.13052688]
[1741941993877,4.4e-07,82817.0,82816.0,2.18652688]
[1741941994234,0.0008,82829.0,82816.0,2.18652688]
[1741941994235,0.0008,82829.0,82828.0,0.676737]
[1741941994404,0.0009231,82829.0,82828.0,0.69512511]
[1741941994614,0.0009231,82829.0,82828.0,0.84658596]
[1741941995521,0.0009231,82829.0,82828.0,1.26398596]
[1741941996361,0.0009231,82829.0,82828.0,1.26998596]
[1741941996563,0.0009231,82829.0,82828.0,0.53804511]
[1741941996791,0.0009231,82829.0,82828.0,0.69204511]
[1741941996960,0.0009231,82829.0,82828.0,0.68604511]
[1741941997178,0.0009231,82829.0,82828.0,0.69204511]
[1741941997594,0.0009231,82829.0,82828.0,0.65244511]
[1741941998500,0.00082274,82829.0,82828.0,0.51552511]
[1741941998703,0.00082274,82829.0,82828.0,0.65240511]
[1741941998941,0.00082274,82829.0,82828.0,0.51552511]
[1741941999158,0.00082274,82829.0,82828.0,0.65240511]
[1741942001906,0.00082274,82829.0,82828.0,0.49840511]
[1741942002546,0.00082274,82829.0,82828.0,0.80640511]
[1741942004714,0.00082274,82829.0,82828.0,0.49840511]
[1741942004904,0.00099174,82829.0,82828.0,0.49840511]
[1741942008081,0.00099174,82829.0,82828.0,0.80640511]
[1741942015703,0.00099174,82829.0,82828.0,0.80040511]
[1741942016250,0.00099174,82829.0,82828.0,0.49840511]
[1741942016379,0.00099174,82829.0,82828.0,0.49240511]
[1741942016834,0.00099174,82829.0,82828.0,0.82094596]
[1741942017470,0.00099174,82829.0,82828.0,0.85194636]
[1741942019051,0.00099174,82829.0,82828.0,1.26934636]
[1741942019254,0.00099174,82829.0,82828.0,1.26968436]
[1741942020003,0.00099174,82829.0,82828.0,1.23868396]
[1741942020300,0.00099174,82829.0,82828.0,1.23864396]
[1741942020502,0.00099174,82829.0,82828.0,0.82124396]
[1741942021148,0.00099174,82829.0,82828.0,0.68440396]
[1741942021373,0.00099174,82829.0,82828.0,0.82124396]
[1741942021790,0.00099174,82829.0,82828.0,0.81524396]
[1741942021992,0.00099174,82829.0,82828.0,0.66386311]
[1741942022193,0.00099174,82829.0,82828.0,0.80070311]
[1741942022398,0.00099174,82829.0,82828.0,0.66386311]
[1741942022633,0.00099174,82829.0,82828.0,0.72310311]
[1741942022854,0.00099174,82829.0,82828.0,0.58626311]
[1741942023062,0.00099174,82829.0,82828.0,0.72910311]
[1741942023310,0.00099174,82829.0,82828.0,0.33872611]
[1741942023481,0.24245274,82829.0,82828.0,0.33272611]
[1741942023694,0.2734574,82829.0,82828.0,0.32672611]
[1741942023904,0.2734574,82829.0,82828.0,0.33272611]
[1741942024132,0.25452574,82829.0,82828.0,0.33272611]
[1741942024274,0.32406048,82829.0,82828.0,0.33872611]
[1741942024478,0.37236048,82829.0,82828.0,0.33272611]
[1741942024681,0.67236048,82829.0,82828.0,0.33272611]
[1741942025097,5.91106048,82829.0,82828.0,0.33672611]
[1741942025295,5.97716048,82829.0,82828.0,0.33672611]
[1741942025523,0.91466048,82829.0,82828.0,0.312338]
[1741942025725,0.91466048,82829.0,82828.0,0.317338]
[1741942026275,0.91466048,82829.0,82828.0,0.312338]
[1741942026477,0.92600201,82829.0,82828.0,0.312338]
[1741942026694,0.92600201,82829.0,82828.0,0.308338]
[1741942026898,0.97600201,82829.0,82828.0,0.308338]
[1741942027387,0.378174,82817.0,82816.0,0.000338]
[1741942027605,0.7943274,82817.0,82816.0,0.000338]
[1741942027969,6.5712484,82817.0,82816.0,0.000338]
[1741942028177,6.5477274,82817.0,82816.0,0.000338]
[1741942028373,6.56666597,82817.0,82816.0,0.000338]
[1741942028720,5.79016597,82817.0,82816.0,0.003338]
[1741942028942,5.74606597,82817.0,82816.0,0.003338]
[1741942029123,5.74606597,82817.0,82816.0,0.000338]
[1741942029655,5.14446597,82817.0,82816.0,0.000338]
[1741942029863,3.96246597,82817.0,82816.0,0.000338]
[1741942030070,3.94956597,82817.0,82816.0,0.000338]
[1741942030318,3.93096597,82817.0,82816.0,0.000338]
[1741942030513,3.93096597,82817.0,82816.0,0.002338]
[1741942030832,3.93096597,82817.0,82816.0,0.000338]
[1741942031031,3.95556105,82817.0,82816.0,0.000338]
[1741942031431,3.95656105,82817.0,82816.0,0.000338]
[1741942032916,3.93762248,82817.0,82816.0,0.000338]
[1741942033178,3.98356333,82817.0,82816.0,0.000338]
[1741942033407,3.9974983,82817.0,82816.0,1e-06]
[1741942033607,4.0474983,82817.0,82816.0,1e-06]
[1741942033880,3.9974983,82817.0,82816.0,1e-06]
[1741942034327,4.0474983,82817.0,82816.0,1e-06]
[1741942034714,3.9964983,82817.0,82816.0,1e-06]
[1741942034924,4.0494983,82817.0,82816.0,1e-06]
[1741942035126,4.0494983,82817.0,82799.0,0.000338]
[1741942035127,0.63426285,82800.0,82799.0,0.000338]
[1741942035331,6.54806385,82800.0,82799.0,0.000338]
[1741942035514,6.59806385,82800.0,82799.0,0.000338]
[1741942036076,6.62946385,82800.0,82799.0,0.000338]
[1741942036297,4.27524285,82800.0,82799.0,0.000338]
[1741942036532,4.41940336,82800.0,82799.0,0.00074844]
[1741942036910,4.36940336,82800.0,82799.0,0.00174844]
[1741942037111,4.42440336,82800.0,82799.0,0.00174844]
[1741942037488,4.37440336,82800.0,82799.0,0.00174844]
[1741942037699,1.26630336,82800.0,82799.0,0.00174844]
[1741942037914,0.51720162,82800.0,82799.0,0.00174844]
[1741942038123,0.28682162,82800.0,82799.0,0.00174844]
[1741942038571,0.262622,82800.0,82799.0,0.00174844]
[1741942038776,0.562622,82800.0,82799.0,0.00174844]
[1741942038979,0.558622,82800.0,82799.0,0.00174844]
[1741942039198,0.6652069,82800.0,82799.0,0.00174844]
[1741942039421,0.6692069,82800.0,82799.0,0.00174844]
[1741942039793,0.6642069,82800.0,82799.0,0.00074844]
[1741942040181,0.6672069,82800.0,82799.0,0.00074844]
[1741942040802,0.6692069,82800.0,82799.0,0.00074844]
[1741942041203,0.6652069,82800.0,82799.0,0.00074844]
[1741942041385,0.6672069,82800.0,82799.0,0.00074844]
[1741942042376,0.560622,82800.0,82799.0,0.00074844]
[1741942042581,0.558622,82800.0,82799.0,0.00074844]
[1741942042965,0.579563,82800.0,82799.0,0.00074844]
[1741942043680,0.574563,82800.0,82799.0,0.00074844]
[1741942043881,0.576563,82800.0,82799.0,0.00074844]
[1741942044101,0.69252389,82800.0,82799.0,0.00074844]
[1741942044731,0.80456474,82800.0,82778.0,0.0003382]
[1741942044942,0.553687,82779.0,82778.0,0.0003382]
[1741942048096,0.57263431,82779.0,82778.0,0.0003382]
[1741942048303,0.60409624,82779.0,82778.0,0.0003382]
[1741942048858,0.72405713,82779.0,82778.0,0.0003382]
[1741942050408,0.73307637,82779.0,82778.0,0.0003382]
[1741942050823,5.07441722,82779.0,82778.0,0.0003382]
[1741942051032,4.12531722,82779.0,82778.0,0.0003382]
[1741942051864,4.19641722,82779.0,82778.0,2e-07]
[1741942052095,0.87271722,82779.0,82778.0,2e-07]
[1741942052298,0.87271722,82779.0,82745.0,0.0003386]
[1741942052299,0.253788,82746.0,82745.0,0.0003386]
[1741942052710,0.553788,82746.0,82745.0,0.0003386]
[1741942053105,0.57273878,82746.0,82745.0,0.0003386]
[1741942053606,0.57273878,82746.0,82745.0,0.0004617]
[1741942053807,0.57273878,82746.0,82745.0,0.0064617]
[1741942054105,0.57273878,82746.0,82745.0,0.0004617]
[1741942054334,0.57273878,82746.0,82745.0,0.0064617]
[1741942054533,0.69269967,82746.0,82745.0,0.0084617]
[1741942054942,0.57273878,82746.0,82745.0,0.0084617]
[1741942055353,0.57273878,82746.0,82745.0,0.0024617]
[1741942055892,0.57273878,82746.0,82745.0,0.0054617]
[1741942057025,0.56065378,82746.0,82745.0,0.0054617]
[1741942057423,0.57273878,82746.0,82745.0,0.0054617]
[1741942057883,0.57273878,82746.0,82745.0,0.02069404]
[1741942058211,0.57273878,82746.0,82745.0,0.02024495]
[1741942058533,0.57273878,82746.0,82745.0,0.00501261]
[1741942059645,0.01895078,82746.0,82745.0,0.25880361]
[1741942059840,0.541695,82749.0,82746.0,0.241702]
[1741942060040,0.312083,82758.0,82752.0,0.012084]
[1741942060246,0.3,82754.0,82751.0,0.0759]
[1741942060480,0.541682,82754.0,82751.0,0.0759]
[1741942060658,0.541686,82752.0,82751.0,0.0759]
[1741942060862,0.3,82752.0,82751.0,0.33280665]
[1741942061085,0.3,82752.0,82751.0,0.14021865]
[1741942061285,0.012081,82769.0,82763.0,0.012082]
[1741942061499,0.24167,82758.0,82755.0,0.253758]
[1741942061811,0.24167,82758.0,82754.0,0.241679]
[1741942061985,0.24167,82758.0,82756.0,0.01522439]
[1741942062732,0.01894866,82758.0,82752.0,0.012084]
[1741942062838,0.01894866,82758.0,82757.0,0.253754]
[1741942063258,0.01894866,82758.0,82757.0,0.26938985]
[1741942063869,0.01894866,82758.0,82757.0,0.26313551]
[1741942064343,0.01894866,82758.0,82757.0,0.26413551]
[1741942064734,0.01894866,82758.0,82757.0,0.26513551]
[1741942065485,0.01894866,82758.0,82757.0,0.01138151]
[1741942065691,0.57269966,82758.0,82757.0,0.01138151]
[1741942065896,0.79873007,82758.0,82757.0,0.002]
[1741942066539,0.690711,82758.0,82757.0,0.002]
[1741942066712,0.690711,82758.0,82757.0,0.001]
[1741942066918,0.3,82752.0,82750.0,0.24169]
[1741942067166,0.541688,82752.0,82751.0,0.00938241]
[1741942067315,0.13577498,82752.0,82751.0,0.00938241]
[1741942067518,0.012084,82753.0,82751.0,0.00938241]
[1741942067735,0.012084,82752.0,82751.0,0.00938241]
[1741942068130,0.241694,82750.0,82747.0,0.241695]
[1741942068294,0.241695,82749.0,82746.0,0.335586]
[1741942068783,0.241649,82765.0,82754.0,0.012084]
[1741942068975,0.241655,82763.0,82757.0,0.253754]
[1741942069180,0.241651,82764.0,82759.0,0.012083]
[1741942069409,0.541656,82763.0,82760.0,0.241662]
[1741942069580,0.553738,82763.0,82760.0,0.1308]
[1741942069781,0.253742,82761.0,82760.0,0.1308]
[1741942070017,0.553742,82761.0,82760.0,0.1308]
[1741942070431,0.553742,82761.0,82760.0,0.1288]
[1741942070598,0.553742,82761.0,82760.0,0.0476]
[1741942071042,0.253754,82757.0,82756.0,0.0771]
[1741942071719,0.241669,82758.0,82756.0,0.0771]
[1741942071720,0.541662,82760.0,82757.0,0.24167]
[1741942071980,0.01894868,82763.0,82760.0,0.241662]
[1741942072149,0.01894868,82763.0,82762.0,0.253738]
[1741942072351,0.01894868,82763.0,82761.0,0.241658]
[1741942072558,0.26060268,82763.0,82760.0,0.241662]
[1741942072762,0.012082,82762.0,82757.0,0.24167]
[1741942073001,0.253754,82757.0,82756.0,0.0771]
[1741942073540,0.241671,82757.0,82756.0,0.0771]
[1741942073740,0.241671,82757.0,82756.0,0.0801]
[1741942074014,0.253754,82757.0,82756.0,0.0801]
[1741942075342,0.253742,82761.0,82756.0,0.333857]
[1741942075557,0.241663,82760.0,82757.0,0.241671]
[1741942075874,0.253742,82761.0,82757.0,0.253754]
[1741942075875,0.24166,82761.0,82757.0,0.253754]
[1741942076085,0.01894868,82763.0,82761.0,0.253741]
[1741942076284,0.01894868,82763.0,82762.0,0.253738]
[1741942076884,0.01894868,82763.0,82761.0,0.241659]
[1741942077108,0.01894868,82763.0,82762.0,0.25101891]
[1741942077742,0.01894868,82763.0,82762.0,0.26310091]
[1741942077942,0.01894868,82763.0,82762.0,0.39190091]
[1741942078172,0.0001694,82778.0,82776.0,0.241615]
[1741942078426,0.0001694,82778.0,82777.0,0.241613]
[1741942078607,0.0001694,82778.0,82777.0,0.34302871]
[1741942078850,0.0001694,82778.0,82777.0,0.08933571]
[1741942079034,0.2417794,82778.0,82777.0,0.08933571]
[1741942080064,0.2538594,82778.0,82777.0,0.08933571]
[1741942080644,0.33433653,82778.0,82777.0,0.00933571]
[1741942080849,0.012082,82765.0,82763.0,0.083]
[1741942081063,0.241649,82765.0,82763.0,0.083]
[1741942081265,0.241633,82770.0,82764.0,0.26041106]
[1741942081467,0.012081,82774.0,82766.0,0.012082]
[1741942081688,0.012081,82774.0,82767.0,0.00665757]
[1741942081901,0.012081,82774.0,82766.0,0.012082]
[1741942082095,0.012081,82774.0,82763.0,0.083]
[1741942082096,0.03146193,82779.0,82769.0,0.012081]
[1741942082299,0.03146193,82779.0,82751.0,0.362531]
[1741942082300,0.03146193,82779.0,82777.0,0.332693]
[1741942082861,0.01911371,82778.0,82777.0,0.3393408]
[1741942083459,0.01911371,82778.0,82777.0,0.3850408]
[1741942084037,0.01911371,82778.0,82777.0,0.3870408]
[1741942085175,0.01911371,82778.0,82777.0,0.3769608]
[1741942085491,0.01911371,82778.0,82777.0,0.1353478]
[1741942085836,0.01911371,82778.0,82777.0,0.3890408]
[1741942090034,0.01911371,82778.0,82777.0,0.1353478]
[1741942090869,0.26072371,82778.0,82777.0,0.1353478]
[1741942091147,0.01911371,82778.0,82777.0,0.1353478]
[1741942091507,0.01911371,82778.0,82777.0,0.3769608]
[1741942092165,0.01911371,82778.0,82777.0,0.1353478]
[1741942092756,0.01911371,82778.0,82777.0,0.3890408]
[1741942093821,0.01911371,82778.0,82777.0,0.1353478]
[1741942094220,0.26072371,82778.0,82777.0,0.1353478]
[1741942095045,0.26072371,82778.0,82777.0,0.0106478]
[1741942095046,0.3547334,82778.0,82777.0,0.0106478]
[1741942095876,0.3547334,82778.0,82777.0,0.004]
[1741942096082,0.24163,82771.0,82770.0,0.079]
[1741942096481,0.24163,82771.0,82770.0,0.08565288]
[1741942097059,0.253709,82772.0,82770.0,0.08565288]
[1741942097263,0.01911371,82778.0,82772.0,0.241627]
[1741942097523,0.04435013,82777.0,82773.0,0.241622]
[1741942097829,0.241621,82774.0,82773.0,0.00664995]
[1741942098303,0.241621,82774.0,82770.0,0.091081]
[1741942098304,0.241625,82773.0,82770.0,0.332708]
[1741942098535,0.24163,82771.0,82770.0,0.079]
[1741942098718,0.241629,82772.0,82770.0,0.079]
[1741942099169,0.01911371,82778.0,82770.0,0.079]
[1741942099374,0.01911371,82778.0,82777.0,0.253693]
[1741942099582,0.01911371,82778.0,82777.0,0.241613]
[1741942099843,0.01911371,82778.0,82774.0,0.253702]
[1741942100037,0.01911371,82778.0,82777.0,0.253693]
[1741942100948,0.01911371,82778.0,82777.0,0.332693]
[1741942101559,0.01911371,82778.0,82777.0,0.378393]
[1741942101761,0.0001694,82778.0,82777.0,0.378393]
[1741942102164,0.0001694,82778.0,82777.0,0.380393]
[1741942103239,0.0001694,82778.0,82777.0,0.382393]
[1741942103803,4e-07,82778.0,82777.0,0.380393]
[1741942104005,0.3001693,82816.0,82815.0,0.253577]
[1741942104211,0.0001693,82816.0,82815.0,0.253577]
[1741942104409,0.32714711,82816.0,82815.0,0.253577]
[1741942104608,0.04608512,82816.0,82815.0,0.253577]
[1741942105012,0.01910731,82816.0,82815.0,0.26016033]
[1741942105217,0.04635034,82816.0,82815.0,0.26016033]
[1741942105372,0.01951749,82816.0,82815.0,0.26016033]
[1741942105575,0.04612576,82816.0,82815.0,0.24808533]
[1741942105777,0.3,82822.0,82819.0,0.241489]
[1741942106017,0.3,82822.0,82821.0,0.253558]
[1741942106018,0.32722824,82822.0,82821.0,0.253558]
[1741942106238,0.01906005,82822.0,82821.0,0.253558]
[1741942106441,0.01906005,82822.0,82821.0,0.34152725]
[1741942106688,0.01906005,82822.0,82821.0,0.33852725]
[1741942107064,0.01906005,82822.0,82821.0,0.38402725]
[1741942107301,0.01906005,82822.0,82821.0,0.38502725]
[1741942108687,0.01906005,82822.0,82821.0,0.38602725]
[1741942109711,0.00894691,82822.0,82821.0,0.38602725]
[1741942110596,0.00894691,82822.0,82821.0,0.38702725]
[1741942111119,0.00894691,82822.0,82821.0,0.38602725]
[1741942111532,0.00894691,82822.0,82821.0,0.38902725]
[1741942114007,0.000169,82829.0,82828.0,0.253537]
[1741942114429,0.000169,82829.0,82828.0,0.26007575]
[1741942114905,0.57828527,82829.0,82828.0,0.00653875]
[1741942115392,0.57828527,82829.0,82821.0,0.0063386]
[1741942115393,0.253555,82822.0,82821.0,0.0063386]
[1741942115803,0.253555,82822.0,82821.0,0.01287256]
[1741942115972,0.253555,82822.0,82821.0,0.0063386]
[1741942116179,0.253555,82822.0,82821.0,0.0003386]
[1741942117516,0.253555,82822.0,82821.0,0.2538966]
[1741942117517,0.01893542,82822.0,82821.0,0.2538966]
[1741942117938,0.01893542,82822.0,82821.0,0.26043056]
[1741942118146,0.01893542,82822.0,82821.0,0.24835656]
[1741942118351,0.01893542,82822.0,82821.0,0.00687256]
[1741942118791,0.26041642,82822.0,82821.0,0.00687256]
[1741942119197,0.26041642,82822.0,82821.0,0.00787256]
[1741942119819,0.01893542,82822.0,82821.0,0.00787256]
[1741942120023,0.01893542,82822.0,82821.0,0.24935656]
[1741942120164,0.01893542,82822.0,82821.0,0.26143056]
[1741942120575,0.01893542,82822.0,82821.0,0.26343056]
[1741942120983,0.01893542,82822.0,82821.0,0.30883056]
[1741942121420,0.26041642,82822.0,82821.0,0.05527256]
[1741942121659,0.01893542,82822.0,82821.0,0.00987256]
[1741942121866,0.01893542,82822.0,82821.0,0.25135656]
[1741942122069,0.01893542,82822.0,82821.0,0.26343056]
[1741942122483,0.01893542,82822.0,82821.0,0.26043056]
[1741942122690,0.01893542,82822.0,82821.0,0.26143056]
[1741942122894,0.01893542,82822.0,82821.0,0.26243056]
[1741942123272,0.01893542,82822.0,82821.0,0.26343056]
[1741942123676,0.01893542,82822.0,82821.0,0.26743056]
[1741942124079,0.01893542,82822.0,82821.0,0.26343056]
[1741942124408,0.01893542,82822.0,82821.0,0.26643056]
[1741942124580,0.01893542,82822.0,82821.0,0.26343056]
[1741942125563,0.01893542,82822.0,82821.0,0.00987256]
[1741942126031,0.04859746,82822.0,82821.0,0.00887256]
[1741942126169,0.29007846,82822.0,82821.0,0.00887256]
[1741942126373,0.29007846,82822.0,82821.0,0.0043386]
[1741942126624,0.26041642,82822.0,82821.0,0.0043386]
[1741942126943,0.01893542,82822.0,82821.0,0.2578966]
[1741942127110,0.01893542,82822.0,82821.0,0.26042743]
[1741942127315,0.01910472,82822.0,82821.0,0.26042743]
[1741942127538,0.01910472,82822.0,82821.0,0.26242743]
[1741942127748,0.01910472,82822.0,82821.0,0.26542743]
[1741942127894,0.01910472,82822.0,82821.0,0.26342743]
[1741942128109,0.01910472,82822.0,82821.0,0.26042743]
[1741942128314,0.01910472,82822.0,82821.0,0.26142743]
[1741942130042,0.01910472,82822.0,82821.0,0.26342743]
[1741942130848,0.01910472,82822.0,82821.0,0.26142743]
[1741942131113,0.01910472,82822.0,82821.0,0.26042743]
[1741942131318,0.01910472,82822.0,82821.0,0.25135343]
[1741942131501,0.01910472,82822.0,82821.0,0.01186943]
[1741942131804,0.01910472,82822.0,82821.0,0.00886943]
[1741942132308,0.01910472,82822.0,82821.0,0.25035343]
[1741942132759,0.01910472,82822.0,82821.0,0.26242743]
[1741942132968,0.01910472,82822.0,82821.0,0.00886943]
[1741942133470,0.33856139,82822.0,82821.0,0.01186943]
[1741942133674,0.35063539,82822.0,82821.0,0.01186943]
[1741942133893,0.35063539,82822.0,82821.0,0.0053386]
[1741942134098,0.35063539,82822.0,82821.0,0.01186263]
[1741942134302,0.33856139,82822.0,82821.0,0.01186263]
[1741942134721,0.09708039,82822.0,82821.0,0.01186263]
[1741942134915,0.09708039,82822.0,82821.0,0.25334663]
[1741942135126,0.01910472,82822.0,82821.0,0.01186263]
[1741942135332,0.27265972,82822.0,82821.0,0.01186263]
[1741942135716,0.57265972,82822.0,82821.0,0.01186263]
[1741942135915,0.6198243,82822.0,82821.0,0.0053386]
[1741942136253,0.87698519,82822.0,82821.0,0.0023386]
[1741942136667,0.90106883,82822.0,82821.0,0.0033386]
[1741942137072,0.78110794,82822.0,82821.0,0.0023386]
[1741942137277,0.78110794,82822.0,82821.0,0.0003386]
[1741942138077,0.57780794,82822.0,82821.0,0.0003386]
[1741942138316,0.71492794,82822.0,82821.0,0.0003386]
[1741942139431,0.73386499,82822.0,82821.0,0.0003386]
[1741942141348,0.85382588,82822.0,82821.0,0.0003386]
[1741942141680,0.73386499,82822.0,82821.0,0.0003386]
[1741942142049,0.59674499,82822.0,82821.0,0.0003386]
[1741942142260,0.73378499,82822.0,82821.0,0.0003386]
[1741942142398,0.70970135,82822.0,82821.0,0.0003386]
[1741942147822,6.48662235,82822.0,82821.0,0.0003386]
[1741942148137,6.62112409,82822.0,82821.0,0.0003386]
[1741942148348,6.65452409,82822.0,82821.0,0.0003386]
[1741942148537,4.25840309,82822.0,82821.0,0.0003386]
[1741942148748,3.40976604,82822.0,82821.0,0.0003386]
[1741942150126,2.20566604,82822.0,82821.0,0.0003386]
[1741942150929,1.98336604,82822.0,82821.0,0.0003386]
[1741942151246,2.00330508,82822.0,82821.0,0.0003386]
[1741942151471,1.88334419,82822.0,82821.0,0.0003386]
[1741942151876,1.52564419,82822.0,82821.0,0.0003386]
[1741942153303,1.53483464,82822.0,82821.0,0.0003386]
[1741942153500,1.53483464,82822.0,82821.0,6e-07]
[1741942153711,0.82283464,82822.0,82821.0,6e-07]
[1741942154045,1.00889553,82822.0,82821.0,6e-07]
[1741942154245,1.34179693,82822.0,82821.0,6e-07]
[1741942155104,1.34079693,82822.0,82821.0,6e-07]
[1741942155406,1.34179693,82822.0,82821.0,6e-07]
[1741942156726,1.34479693,82822.0,82821.0,6e-07]
[1741942157345,1.31373891,82822.0,82821.0,6e-07]
[1741942157549,1.36373891,82822.0,82821.0,6e-07]
[1741942159202,1.40007891,82822.0,82821.0,6e-07]
[1741942160569,1.26303891,82822.0,82821.0,6e-07]
[1741942160771,1.40007891,82822.0,82821.0,6e-07]
[1741942162424,2.16735891,82822.0,82821.0,6e-07]
[1741942162630,1.84081717,82822.0,82821.0,6e-07]
[1741942162821,1.60726743,82822.0,82821.0,6e-07]
[1741942163026,1.05313673,82822.0,82821.0,6e-07]
[1741942163238,1.03419475,82822.0,82821.0,6e-07]
[1741942163475,1.03119475,82822.0,82821.0,6e-07]
[1741942163675,1.16831475,82822.0,82821.0,6e-07]
[1741942163956,1.17131475,82822.0,82821.0,6e-07]
[1741942164160,1.03419475,82822.0,82821.0,6e-07]